bitfinex/quotes_SOLUSD_20230104
["timestamp","ask_amount","ask_price","bid_price","bid_amount"]
[1672864831889,175.2228,12.998,12.982,30.0]
[1672864832536,175.2228,12.998,12.981,30.0]
[1672864832748,175.2228,12.998,12.98,21.7811836]
[1672864832945,30.0,12.997,12.981,50.0]
[1672864833155,57.76,12.996,12.981,50.0]
[1672864834206,57.75,12.997,12.981,50.0]
[1672864835782,57.75,12.997,12.98,96.37756062]
[1672864836008,13.47,12.99,12.98,49.18337925]
[1672864836322,57.79,12.989,12.975,276.59418137]
[1672864836559,176.4631,12.989,12.976,79.18337925]
[1672864836723,176.4631,12.989,12.978,21.7811836]
[1672864837156,118.6731,12.989,12.978,21.7811836]
[1672864837586,176.4631,12.989,12.978,21.7811836]
[1672864838007,30.0,12.988,12.978,21.7811836]
[1672864838639,176.4631,12.989,12.978,21.7811836]
[1672864839167,118.6731,12.989,12.979,30.0]
[1672864839365,118.6731,12.989,12.978,21.7811836]
[1672864839571,118.6731,12.989,12.98,21.7811836]
[1672864840637,114.8198357,12.989,12.98,21.7811836]
[1672864841383,57.79,12.988,12.98,21.7811836]
[1672864843261,114.8198357,12.989,12.98,21.7811836]
[1672864846108,172.6098357,12.989,12.98,21.7811836]
[1672864847699,172.6098357,12.989,12.971,36.7339]
[1672864847700,172.6098357,12.989,12.97,13.57]
[1672864847869,172.6098357,12.989,12.967,349.67611949]
[1672864847870,30.0,12.987,12.967,229.4]
[1672864848080,129.18465899,12.986,12.972,21.7811836]
[1672864848293,30.0,12.985,12.972,21.7811836]
[1672864848505,129.19465899,12.984,12.972,21.7811836]
[1672864848715,30.0,12.983,12.972,21.7811836]
[1672864848944,71.38465899,12.982,12.972,21.7811836]
[1672864849686,71.23071132,12.982,12.972,21.7811836]
[1672864850735,101.23071132,12.982,12.972,21.7811836]
[1672864851148,71.23071132,12.982,12.972,21.7811836]
[1672864851359,71.23071132,12.979,12.967,277.53732]
[1672864851574,13.47,12.98,12.967,277.53732]
[1672864851575,71.23071132,12.977,12.967,263.3]
[1672864851788,71.23071132,12.977,12.968,21.7811836]
[1672864852308,71.23071132,12.977,12.967,263.3]
[1672864852513,67.37525992,12.977,12.967,263.3]
[1672864852933,67.37525992,12.977,12.968,21.7811836]
[1672864853139,67.37525992,12.977,12.962,105.10418137]
[1672864853354,67.37525992,12.977,12.962,47.19418137]
[1672864853355,67.37525992,12.975,12.962,47.19418137]
[1672864853567,63.51980852,12.975,12.964,21.7811836]
[1672864853765,63.51980852,12.975,12.959,57.92]
[1672864853980,63.51980852,12.975,12.962,30.0]
[1672864854310,63.51980852,12.975,12.963,21.7811836]
[1672864854529,63.51980852,12.975,12.963,62.62830494]
[1672864854734,63.51980852,12.977,12.964,317.24712134]
[1672864855046,115.4562,12.978,12.965,36.0207036]
[1672864855261,115.4562,12.978,12.967,30.0]
[1672864855666,115.4562,12.978,12.968,21.7811836]
[1672864856632,115.4562,12.978,12.97,30.0]
[1672864857076,115.4562,12.978,12.971,21.7811836]
[1672864859760,57.81,12.984,12.971,21.7811836]
[1672864859966,71.32,12.99,12.973,30.0]
[1672864860199,71.32,12.99,12.974,57.85]
[1672864860394,71.32,12.99,12.974,179.55484765]
[1672864860605,71.32,12.99,12.975,98.97536497]
[1672864861037,71.32,12.99,12.976,21.7811836]
[1672864861257,71.32,12.99,12.975,30.0]
[1672864861871,71.32,12.99,12.975,82.72948268]
[1672864862082,13.54,12.99,12.975,104.51066628]
[1672864862940,57.79,12.989,12.975,52.72948268]
[1672864863152,30.0,12.988,12.972,14.23183]
[1672864863368,57.8,12.987,12.971,40.84712134]
[1672864863577,57.8,12.987,12.969,30.0]
[1672864863979,57.8,12.987,12.97,21.7811836]
[1672864864392,57.8,12.987,12.969,30.0]
[1672864864632,57.8,12.987,12.969,51.7811836]
[1672864865250,30.0,12.986,12.969,21.7811836]
[1672864865452,57.81,12.985,12.969,21.7811836]
[1672864865665,13.47,12.98,12.964,57.9]
[1672864865871,13.47,12.98,12.964,30.0]
[1672864866083,57.83,12.979,12.964,30.0]
[1672864866515,108.8748,12.978,12.964,30.0]
[1672864866711,108.72085233,12.978,12.965,21.7811836]
[1672864867347,108.72085233,12.978,12.966,30.0]
[1672864867763,104.86432923,12.978,12.967,21.7811836]
[1672864871238,104.86432923,12.978,12.967,68.79066628]
[1672864871650,101.00779894,12.978,12.967,68.79066628]
[1672864872178,101.00779894,12.978,12.968,51.7811836]
[1672864872494,101.00779894,12.978,12.969,21.7811836]
[1672864872699,57.81,12.984,12.969,21.7811836]
[1672864873120,57.81,12.984,12.97,30.0]
[1672864876615,116.3508,12.985,12.97,30.0]
[1672864877117,53.95525184,12.984,12.97,30.0]
[1672864879326,116.3508,12.985,12.97,30.0]
[1672864880194,53.95525184,12.984,12.97,30.0]
[1672864880687,50.10085276,12.984,12.97,30.0]
[1672864881110,110.8218,12.983,12.97,30.0]
[1672864881749,57.79,12.989,12.971,57.87]
[1672864881962,110.8218,12.989,12.973,299.57117809]
[1672864882170,110.8218,12.989,12.974,17.0]
[1672864882495,110.8218,12.989,12.975,30.0]
[1672864882692,110.8218,12.989,12.975,165.58018098]
[1672864882899,110.8218,12.989,12.977,30.0]
[1672864883323,110.8218,12.989,12.979,30.0]
[1672864883527,57.75,12.997,12.979,30.0]
[1672864883744,114.7887,12.997,12.98,152.58018098]
[1672864883957,57.76,12.996,12.981,30.0]
[1672864884283,57.76,12.996,12.981,143.79899738]
[1672864884490,57.76,12.996,12.982,58.38284803]
[1672864884804,57.76,12.996,12.982,113.79899738]
[1672864886574,57.76,12.996,12.983,30.0]
[1672864886785,57.76,12.996,12.983,88.38284803]
[1672864886995,57.76,12.996,12.985,30.0]
[1672864887433,57.76,12.996,12.986,80.16403163]
[1672864887854,57.76,12.996,12.987,21.7811836]
[1672864888794,114.7887,12.997,12.987,21.7811836]
[1672864889009,57.76,12.996,12.987,21.7811836]
[1672864890476,57.76,12.996,12.983,85.41614935]
[1672864890801,57.76,12.996,12.983,107.19733295]
[1672864891121,114.7887,12.997,12.985,30.0]
[1672864891645,114.7887,12.997,12.987,30.0]
[1672864891862,114.7887,12.997,12.986,55.41614935]
[1672864892699,114.7887,12.997,12.987,30.0]
[1672864893102,114.7887,12.997,12.987,85.41614935]
[1672864895431,114.7887,12.997,12.988,21.7811836]
[1672864895836,114.7887,12.997,12.989,30.0]
[1672864896169,114.7887,12.997,12.99,21.7811836]
[1672864897014,114.7887,12.997,12.99,78.6394783]
[1672864897416,114.7887,12.997,12.991,21.7811836]
[1672864900367,114.7887,12.997,12.985,30.0]
[1672864900582,114.7887,12.997,12.986,17.0]
[1672864900794,114.7887,12.997,12.987,21.7811836]
[1672864902378,114.7887,12.997,12.987,72.37902497]
[1672864902786,114.7887,12.997,12.987,21.7811836]
[1672864904484,114.7887,12.997,12.987,72.37902497]
[1672864910616,114.7887,12.997,12.987,50.59784137]
[1672864913011,114.7887,12.997,12.987,72.37902497]
[1672864913221,114.7887,12.997,12.988,30.0]
[1672864913430,108.7583,12.999,12.989,17.0]
[1672864913652,108.7583,12.999,12.99,30.0]
[1672864913872,108.7583,12.999,12.99,97.3783583]
[1672864914807,108.7583,12.999,12.991,42.24716137]
[1672864915016,108.7583,12.999,12.992,30.0]
[1672864915533,57.73,13.003,12.992,78.83382803]
[1672864915745,119.2706,13.004,12.992,78.83382803]
[1672864915967,119.2706,13.004,12.993,38.7811836]
[1672864916160,119.2706,13.004,12.994,30.0]
[1672864916377,119.2706,13.004,12.995,17.0]
[1672864916697,119.2706,13.004,12.996,30.0]
[1672864916912,119.2706,13.004,12.996,59.30584803]
[1672864917656,57.7,13.009,12.996,59.30584803]
[1672864917657,57.7,13.009,12.996,264.08842641]
[1672864917867,171.0268,13.016,12.999,7.87046101]
[1672864918082,171.0268,13.016,13.002,30.0]
[1672864918279,171.0268,13.016,13.003,7.87046101]
[1672864919854,171.0268,13.016,13.002,73.36375974]
[1672864920398,171.0268,13.016,13.002,53.5945147]
[1672864920604,171.0268,13.016,13.003,30.0]
[1672864921241,57.69,13.012,13.003,30.0]
[1672864921433,57.67,13.015,13.003,30.0]
[1672864922904,57.67,13.015,13.001,30.0]
[1672864924168,57.67,13.015,13.003,30.0]
[1672864926180,57.67,13.015,13.001,30.0]
[1672864926401,57.67,13.015,13.0,44.20118]
[1672864926604,57.69,13.012,13.0,14.20118]
[1672864926793,57.69,13.012,12.999,53.5945147]
[1672864927003,57.69,13.012,12.998,30.0]
[1672864927525,57.69,13.012,12.998,83.5945147]
[1672864927732,57.69,13.012,12.998,105.3756983]
[1672864927955,57.69,13.012,13.0,30.0]
[1672864928786,57.69,13.012,13.0,95.14494334]
[1672864928997,57.67,13.015,13.001,17.0]
[1672864929206,57.67,13.015,13.0,109.34612334]
[1672864929441,57.69,13.012,13.0,141.15945444]
[1672864929630,57.69,13.012,13.0,87.56493974]
[1672864930051,57.69,13.012,13.001,21.7811836]
[1672864930266,57.67,13.015,13.001,21.7811836]
[1672864930475,57.67,13.015,13.002,30.0]
[1672864933637,57.67,13.015,13.001,43.36375974]
[1672864934036,57.69,13.012,13.001,43.36375974]
[1672864934265,57.69,13.012,13.001,96.95827444]
[1672864934695,57.69,13.012,13.001,43.36375974]
[1672864935218,57.67,13.015,13.001,43.36375974]
[1672864935624,57.67,13.015,13.002,47.0]
[1672864936255,57.67,13.015,13.002,30.0]
[1672864936894,57.67,13.015,13.003,17.0]
[1672864937109,57.67,13.015,13.002,30.0]
[1672864939406,57.69,13.012,13.002,30.0]
[1672864940260,57.69,13.012,13.0,44.20118]
[1672864940576,57.67,13.015,13.0,44.20118]
[1672864940762,57.67,13.015,13.0,14.20118]
[1672864940975,30.0,13.009,12.996,53.18068137]
[1672864941202,39.5029181,13.007,12.985,67.8466]
[1672864941411,39.5029181,13.005,12.986,60.0]
[1672864941612,57.72,13.004,12.988,30.0]
[1672864941813,30.0,13.006,12.988,30.0]
[1672864941814,57.72,13.005,12.988,30.0]
[1672864942455,57.71,13.007,12.989,17.0]
[1672864943083,110.3475,13.009,12.991,30.0]
[1672864943311,110.3475,13.009,12.993,30.0]
[1672864943500,168.0475,13.009,12.994,57.77]
[1672864943701,168.0475,13.009,12.996,30.0]
[1672864943917,110.3475,13.009,12.996,30.0]
[1672864945193,110.3475,13.009,12.997,17.0]
[1672864945812,110.3475,13.009,12.996,30.0]
[1672864948877,110.3475,13.009,12.995,30.0]
[1672864949487,110.3475,13.009,12.996,17.0]
[1672864950663,110.3475,13.009,12.995,30.0]
[1672864954660,168.0475,13.009,12.995,30.0]
[1672864955280,168.0475,13.009,12.992,81.2793]
[1672864955491,168.0475,13.009,12.992,23.5093]
[1672864955926,168.0475,13.009,12.993,30.0]
[1672864956529,168.0475,13.009,12.99,293.3]
[1672864956750,30.0,13.008,12.99,30.0]
[1672864956966,95.08520568,13.007,12.99,30.0]
[1672864957176,30.0,13.005,12.987,30.0]
[1672864957387,30.0,13.003,12.987,30.0]
[1672864957597,210.68592075,13.002,12.987,30.0]
[1672864958020,116.6685,13.002,12.987,30.0]
[1672864958233,116.6685,13.002,12.989,30.0]
[1672864958431,116.6685,13.002,12.988,51.70905307]
[1672864958642,40.38,13.0,12.985,23.796]
[1672864958850,109.6951,12.999,12.983,168.18287809]
[1672864959274,34.30993543,12.998,12.983,110.37287809]
[1672864959490,30.0,12.998,12.983,110.37287809]
[1672864959709,30.0,12.998,12.983,70.17117809]
[1672864959911,109.6951,12.999,12.983,127.98117809]
[1672864960234,109.6951,12.999,12.984,30.0]
[1672864961380,109.6951,12.999,12.981,259.4]
[1672864961381,43.74596891,12.998,12.981,57.82]
[1672864961706,109.6951,12.999,12.978,57.84]
[1672864961707,56.5754921,12.996,12.978,57.84]
[1672864961904,87.76,12.995,12.979,60.0]
[1672864962257,30.0,12.993,12.979,30.0]
[1672864962440,283.8116921,12.992,12.979,30.0]
[1672864963055,56.5754921,12.992,12.979,30.0]
[1672864963386,114.3254921,12.998,12.982,30.0]
[1672864963595,57.75,12.998,12.982,30.0]
[1672864964215,87.75,12.998,12.982,30.0]
[1672864964536,87.75,12.998,12.983,17.0]
[1672864964758,30.0,12.997,12.983,17.0]
[1672864965387,30.0,12.997,12.979,57.83]
[1672864965698,30.0,12.997,12.978,30.0]
[1672864965699,57.76,12.996,12.978,30.0]
[1672864965910,30.0,12.995,12.978,30.0]
[1672864966118,57.77,12.994,12.978,30.0]
[1672864966332,30.0,12.992,12.978,30.0]
[1672864966520,117.7715,12.992,12.978,30.0]
[1672864966731,117.7715,12.992,12.979,17.0]
[1672864966955,117.7715,12.992,12.978,30.0]
[1672864968540,117.7715,12.992,12.979,17.0]
[1672864968726,117.7715,12.992,12.98,30.0]
[1672864969461,117.7715,12.992,12.981,17.0]
[1672864970328,117.7715,12.992,12.978,30.0]
[1672864970632,175.5415,12.992,12.978,30.0]
[1672864970849,117.7715,12.992,12.978,30.0]
[1672864971049,117.7715,12.992,12.976,30.0]
[1672864972222,175.5415,12.992,12.976,30.0]
[1672864972638,117.7715,12.992,12.976,30.0]
[1672864972947,117.7715,12.992,12.977,17.0]
[1672864973772,41.24484737,12.989,12.973,263.3]
[1672864973983,40.12,12.99,12.971,229.4]
[1672864973984,49.75839451,12.987,12.971,229.4]
[1672864974217,57.8,12.986,12.971,229.4]
[1672864974420,30.0,12.988,12.972,30.0]
[1672864974421,49.75839451,12.985,12.972,30.0]
[1672864974615,49.75839451,12.987,12.972,30.0]
[1672864976104,49.75839451,12.987,12.973,17.0]
[1672864978184,119.7017,12.988,12.973,17.0]
[1672864978401,37.8864303,12.987,12.973,17.0]
[1672864978833,37.8864303,12.987,12.972,30.0]
[1672864979252,37.8864303,12.987,12.969,69.6]
[1672864979465,67.8864303,12.987,12.971,30.0]
[1672864980199,37.8864303,12.987,12.971,30.0]
[1672864980829,37.8864303,12.987,12.972,17.0]
[1672864981460,37.8864303,12.987,12.971,30.0]
[1672864982202,119.7017,12.988,12.971,299.57117809]
[1672864982388,119.7017,12.988,12.971,70.17117809]
[1672864982921,119.7017,12.988,12.973,30.0]
[1672864983131,119.7017,12.988,12.974,17.0]
[1672864983452,119.7017,12.988,12.975,30.0]
[1672864984290,119.7017,12.988,12.973,30.0]
[1672864985444,119.7017,12.988,12.97,60.0]
[1672864985648,30.0,12.986,12.97,30.0]
[1672864985858,108.2464,12.985,12.97,30.0]
[1672864986717,108.2464,12.985,12.969,30.0]
[1672864988190,108.2464,12.985,12.97,17.0]
[1672864988799,108.2464,12.985,12.972,40.17117809]
[1672864989031,108.2464,12.985,12.973,30.0]
[1672864991341,108.2464,12.985,12.972,40.17117809]
[1672864991858,108.2464,12.985,12.966,269.57117809]
[1672864991859,13.51,12.98,12.966,269.57117809]
[1672864992072,108.0855,12.979,12.966,30.0]
[1672864992694,114.90375233,12.978,12.966,30.0]
[1672864992897,114.90375233,12.978,12.967,17.0]
[1672864993316,114.90375233,12.978,12.968,30.0]
[1672864995750,114.74980466,12.978,12.968,30.0]
[1672864996697,114.59585818,12.978,12.968,30.0]
[1672864997512,114.59585818,12.978,12.968,70.17117809]
[1672864997838,113.65346868,12.978,12.968,70.17117809]
[1672864999108,113.65346868,12.978,12.97,40.17117809]
[1672864999615,112.71108643,12.978,12.97,40.17117809]
[1672864999844,112.71108643,12.978,12.971,30.0]
[1672865000812,111.76870418,12.978,12.971,30.0]
[1672865001213,111.76870418,12.978,12.97,40.17117809]
[1672865001737,111.76870418,12.978,12.971,30.0]
[1672865001738,111.61475888,12.978,12.971,30.0]
[1672865002396,111.61475888,12.978,12.97,40.17117809]
[1672865002796,110.67238387,12.978,12.965,23.85997729]
[1672865003003,110.67238387,12.978,12.964,30.0]
[1672865003206,110.67238387,12.978,12.965,30.0]
[1672865003634,110.67238387,12.978,12.966,30.0]
[1672865005420,110.67238387,12.978,12.963,30.0]
[1672865005638,57.84,12.977,12.963,30.0]
[1672865010066,57.84,12.977,12.964,17.0]
[1672865010907,168.51238387,12.978,12.964,17.0]
[1672865012151,168.51238387,12.978,12.963,30.0]
[1672865013414,168.51238387,12.978,12.964,17.0]
[1672865013625,106.81621124,12.978,12.964,17.0]
[1672865013836,106.81621124,12.978,12.963,30.0]
[1672865014270,57.84,12.977,12.963,30.0]
[1672865015433,57.84,12.977,12.964,17.0]
[1672865015636,164.65621124,12.978,12.964,17.0]
[1672865015957,106.81621124,12.978,12.964,17.0]
[1672865018900,57.84,12.977,12.964,17.0]
[1672865019098,106.81621124,12.978,12.964,17.0]
[1672865019308,57.81,12.984,12.964,17.0]
[1672865019519,112.5726,12.984,12.966,229.4]
[1672865019729,57.81,12.983,12.967,17.0]
[1672865019948,57.81,12.983,12.968,30.0]
[1672865020148,170.3826,12.984,12.969,17.0]
[1672865020358,170.3826,12.984,12.97,30.0]
[1672865020564,30.0,12.983,12.971,17.0]
[1672865020794,30.0,12.983,12.969,17.0]
[1672865021207,57.82,12.982,12.969,17.0]
[1672865021416,57.82,12.982,12.968,17.0]
[1672865022898,57.81,12.983,12.968,17.0]
[1672865023116,170.3826,12.984,12.968,17.0]
[1672865023953,53.91,12.98,12.965,14.23952]
[1672865024142,53.91,12.98,12.953,30.833162]
[1672865024143,30.0,12.978,12.957,30.0]
[1672865024346,57.84,12.977,12.957,30.0]
[1672865024577,30.0,12.975,12.957,30.0]
[1672865024788,57.85,12.974,12.957,30.0]
[1672865024992,57.85,12.975,12.957,30.0]
[1672865025196,57.85,12.975,12.961,30.0]
[1672865025409,111.0746,12.976,12.961,30.0]
[1672865026353,111.0746,12.976,12.963,30.0]
[1672865026573,107.2174753,12.976,12.964,17.0]
[1672865031511,107.2174753,12.976,12.963,30.0]
[1672865031824,30.0,12.975,12.953,466.74493591]
[1672865032140,35.28892152,12.974,12.96,13.51]
[1672865032356,30.0,12.975,12.96,13.51]
[1672865033722,30.0,12.975,12.961,17.0]
[1672865034248,30.0,12.975,12.954,25.585374]
[1672865034249,30.0,12.975,12.956,4.282]
[1672865034453,97.97240277,12.974,12.955,4.282]
[1672865034664,94.11705921,12.974,12.954,14.25161]
[1672865034859,30.0,12.973,12.953,4.283]
[1672865035064,111.55812427,12.972,12.953,4.283]
[1672865035280,30.0,12.971,12.952,35.073203]
[1672865035593,30.0,12.969,12.952,30.790203]
[1672865035807,176.59019741,12.968,12.952,30.790203]
[1672865036030,176.59019741,12.968,12.953,229.4]
[1672865036445,176.59019741,12.968,12.953,233.683]
[1672865036982,176.59019741,12.968,12.953,4.283]
[1672865037192,30.0,12.967,12.952,30.790203]
[1672865037376,58.18799741,12.966,12.952,30.790203]
[1672865037809,58.18799741,12.966,12.952,51.240203]
[1672865038030,58.18799741,12.966,12.952,30.790203]
[1672865039166,30.0,12.967,12.952,30.790203]
[1672865039375,58.18799741,12.969,12.952,30.790203]
[1672865039605,58.18799741,12.969,12.953,30.0]
[1672865039821,58.18799741,12.969,12.952,30.790203]
[1672865040218,58.18799741,12.969,12.953,30.0]
[1672865041056,58.18799741,12.969,12.952,60.790203]
[1672865041266,58.18799741,12.969,12.953,17.0]
[1672865042115,30.0,12.968,12.952,30.790203]
[1672865042325,58.18799741,12.967,12.952,30.790203]
[1672865043288,30.0,12.968,12.952,30.790203]
[1672865043605,31.11168922,12.967,12.952,30.790203]
[1672865043817,31.11168922,12.967,12.953,17.0]
[1672865044005,31.11168922,12.967,12.954,30.0]
[1672865044351,31.11168922,12.967,12.953,17.0]
[1672865044884,31.11168922,12.967,12.952,30.790203]
[1672865045075,31.11168922,12.967,12.953,30.0]
[1672865045398,36.31854667,12.969,12.953,30.0]
[1672865046144,36.31854667,12.969,12.954,17.0]
[1672865046445,13.38,12.97,12.954,17.0]
[1672865046630,13.38,12.97,12.952,30.790203]
[1672865046631,30.0,12.969,12.952,30.790203]
[1672865046846,36.8817796,12.967,12.952,30.790203]
[1672865047068,30.0,12.966,12.952,30.790203]
[1672865047389,57.88,12.968,12.953,30.0]
[1672865047581,57.87,12.97,12.953,30.0]
[1672865048422,57.85,12.974,12.953,30.0]
[1672865048629,57.85,12.974,12.955,30.0]
[1672865048841,57.85,12.974,12.956,17.0]
[1672865051486,30.0,12.97,12.956,17.0]
[1672865053710,30.0,12.97,12.956,16.0]
[1672865056856,87.87,12.97,12.956,16.0]
[1672865057368,87.87,12.97,12.952,30.790203]
[1672865057580,101.38,12.97,12.953,17.0]
[1672865057999,114.97,12.97,12.952,30.790203]
[1672865058330,32.36882825,12.969,12.952,30.790203]
[1672865058519,57.88,12.968,12.952,30.790203]
[1672865058732,57.88,12.968,12.953,40.99977112]
[1672865058940,30.0,12.968,12.953,40.99977112]
[1672865059145,30.0,12.966,12.953,40.99977112]
[1672865059372,13.38,12.96,12.952,30.790203]
[1672865059586,13.38,12.96,12.953,40.99977112]
[1672865059919,57.92,12.959,12.953,40.99977112]
[1672865060121,39.92497691,12.958,12.953,40.99977112]
[1672865060425,30.0,12.957,12.953,52.68273245]
[1672865060640,52.78944793,12.956,12.939,201.81729996]
[1672865060824,52.78944793,12.956,12.939,216.08542996]
[1672865060825,13.51,12.95,12.939,216.08542996]
[1672865061037,13.51,12.95,12.939,0.08542996]
[1672865061249,57.97,12.949,12.937,50.50445156]
[1672865061455,124.68556827,12.949,12.94,151.69318275]
[1672865061669,66.71556827,12.949,12.94,165.20318275]
[1672865061892,66.71556827,12.949,12.941,196.69353867]
[1672865062098,66.71556827,12.949,12.941,218.47472227]
[1672865062315,66.71556827,12.949,12.941,239.76613693]
[1672865062316,4.20126827,12.949,12.941,239.76613693]
[1672865062517,30.0,12.957,12.949,66.71556827]
[1672865062734,30.0,12.963,12.95,53.11]
[1672865063047,101.46,12.97,12.951,21.7811836]
[1672865063261,43.59,12.97,12.951,64.19531303]
[1672865063578,43.59,12.97,12.952,63.68952637]
[1672865063992,43.59,12.97,12.953,125.1928597]
[1672865064202,43.59,12.97,12.953,103.4116761]
[1672865064411,43.59,12.97,12.954,57.94]
[1672865064626,43.59,12.97,12.952,43.74498277]
[1672865064834,101.46,12.97,12.953,57.95]
[1672865065056,43.59,12.97,12.951,57.96]
[1672865065262,43.59,12.97,12.953,21.7811836]
[1672865065474,43.59,12.97,12.953,77.25548635]
[1672865065676,43.59,12.97,12.954,57.94]
[1672865065894,43.59,12.97,12.953,55.47430275]
[1672865066090,155.51,12.97,12.955,21.7811836]
[1672865066306,118.2566,12.967,12.955,21.7811836]
[1672865066629,118.2566,12.967,12.949,57.97]
[1672865066863,118.2566,12.967,12.95,21.7811836]
[1672865067158,118.2566,12.967,12.951,57.96]
[1672865067367,118.2566,12.967,12.952,17.0]
[1672865067568,13.59,12.97,12.953,57.95]
[1672865067770,67.6,12.98,12.954,30.0]
[1672865067979,118.2566,12.977,12.96,13.51]
[1672865068210,118.2566,12.977,12.961,74.91]
[1672865068418,118.2566,12.977,12.961,114.83046943]
[1672865068625,57.8,12.987,12.962,20.0]
[1672865068830,114.7553,12.986,12.97,13.51]
[1672865069033,114.7553,12.986,12.964,30.0]
[1672865069249,13.48,12.98,12.971,21.7811836]
[1672865069461,13.48,12.98,12.957,170.49738729]
[1672865069670,114.7553,12.979,12.96,13.51]
[1672865069880,118.1224,12.985,12.961,30.0]
[1672865070092,118.1224,12.985,12.962,15.26]
[1672865070300,118.1224,12.985,12.962,37.0411836]
[1672865070731,118.1224,12.985,12.963,21.7811836]
[1672865070926,30.0,12.984,12.964,45.26]
[1672865071364,30.0,12.984,12.966,30.0]
[1672865071681,30.0,12.984,12.967,54.0411836]
[1672865072082,30.0,12.984,12.968,21.7811836]
[1672865072620,13.51,12.98,12.968,21.7811836]
[1672865074090,67.68,12.98,12.968,21.7811836]
[1672865074501,112.15002467,12.98,12.968,21.7811836]
[1672865074714,30.0,12.978,12.968,21.7811836]
[1672865075046,84.76881697,12.978,12.968,21.7811836]
[1672865076075,84.76881697,12.978,12.957,41.45]
[1672865076286,202.64671697,12.978,12.958,51.7811836]
[1672865076498,202.64671697,12.978,12.959,57.92]
[1672865076706,13.4,12.97,12.959,21.7811836]
[1672865076920,67.41,12.97,12.942,311.43816333]
[1672865077128,116.2983,12.969,12.954,21.7811836]
[1672865077332,30.0,12.968,12.954,21.7811836]
[1672865079760,116.2983,12.969,12.954,21.7811836]
[1672865079968,116.2983,12.969,12.955,16.5]
[1672865080395,116.2983,12.969,12.956,38.7811836]
[1672865080806,116.2983,12.969,12.957,21.7811836]
[1672865081136,116.2983,12.969,12.958,17.0]
[1672865081342,117.8779,12.971,12.96,13.52]
[1672865081668,119.3299,12.975,12.962,30.0]
[1672865081979,119.3299,12.975,12.963,17.0]
[1672865082180,119.3299,12.975,12.963,21.7811836]
[1672865082393,119.3299,12.975,12.961,16.5]
[1672865082592,119.3299,12.975,12.964,21.7811836]
[1672865083536,119.3299,12.975,12.965,17.0]
[1672865084071,119.3299,12.975,12.966,21.7811836]
[1672865084277,119.3299,12.975,12.967,17.0]
[1672865084505,119.3299,12.975,12.966,21.7811836]
[1672865084815,117.8779,12.978,12.968,21.7811836]
[1672865085001,111.4697,12.977,12.968,21.7811836]
[1672865086292,111.4697,12.977,12.969,17.0]
[1672865086607,111.4697,12.977,12.968,21.7811836]
[1672865087007,111.4697,12.977,12.969,17.0]
[1672865087533,111.4697,12.977,12.97,21.7811836]
[1672865087854,117.8779,12.978,12.97,21.7811836]
[1672865088067,108.5173,12.983,12.97,35.1911836]
[1672865088272,108.5173,12.983,12.971,17.0]
[1672865088486,108.5173,12.983,12.971,38.7811836]
[1672865088700,108.5173,12.983,12.972,21.7811836]
[1672865088911,108.5173,12.983,12.973,17.0]
[1672865089319,108.5173,12.983,12.974,21.7811836]